fUSD/lending_fUSD_20240423
["ID","MTS","AMOUNT","RATE_DAILY","PERIOD"]
[323290768,1713877003730,500.0,0.000112,2]
[323290769,1713877006717,515.65,0.000112,2]
[323290770,1713877009241,500.0,0.000112,2]
[323290771,1713877011291,500.0,0.000112,2]
[323290772,1713877013162,158.14,0.00010643,2]
[323290773,1713877013608,158.14,0.00011198,2]
[323290774,1713877015497,500.0,0.000112,2]
[323290775,1713877015555,501.43095949,0.000112,2]
[323290776,1713877015970,500.0,0.000112,2]
[323290777,1713877016119,500.0,0.000112,2]
[323290778,1713877018564,500.0,0.000112,2]
[323290779,1713877020171,500.0,0.000112,2]
[323290780,1713877021970,500.0,0.000112,2]
[323290781,1713877022528,500.0,0.000112,2]
[323290782,1713877022694,878.57,0.000112,2]
[323290783,1713877023176,604.76,0.000112,2]
[323290784,1713877025414,500.0,0.000112,2]
[323290785,1713877026483,500.0,0.000112,2]
[323290786,1713877027691,500.0,0.000112,2]
[323290787,1713877027916,1632.14,0.000112,2]
[323290788,1713877029628,500.0,0.000112,2]
[323290789,1713877033901,982.09,0.000112,2]
[323290790,1713877037615,500.0,0.000112,2]
[323290791,1713877038234,500.0,0.000112,2]
[323290792,1713877038646,500.0,0.000112,2]
[323290793,1713877041135,500.0,0.000112,2]
[323290794,1713877042197,1792.32,0.000112,2]
[323290795,1713877042829,500.0,0.000112,2]
[323290796,1713877044170,504.3450689,0.000112,2]
[323290797,1713877046861,503.54498219,0.000112,2]
[323290798,1713877047030,500.0,0.000112,2]
[323290799,1713877047857,1498.82,0.000112,2]
[323290800,1713877048624,1114.78,0.000112,2]
[323290801,1713877048890,500.0,0.000112,2]
[323290802,1713877050908,500.0,0.000112,2]
[323290803,1713877052122,23900.0,0.0001056,2]
[323290804,1713877052378,500.0,0.000112,2]
[323290805,1713877056578,500.0,0.000112,2]
[323290806,1713877061396,500.0,0.000112,2]
[323290807,1713877062931,500.0,0.000112,2]
[323290808,1713877063017,518.1,0.000112,2]
[323290809,1713877064340,981.5,0.000112,2]
[323290810,1713877068029,500.0,0.000112,2]
[323290811,1713877069148,500.0,0.000112,2]
[323290812,1713877071857,500.0,0.000112,2]
[323290813,1713877074390,500.0,0.000112,2]
[323290814,1713877080788,500.0,0.000112,2]
[323290815,1713877080972,500.0,0.000112,2]
[323290816,1713877082386,500.0,0.000112,2]
[323290817,1713877084894,500.0,0.000112,2]
[323290818,1713877086643,550.82628909,0.000112,2]
[323290819,1713877086768,500.0,0.000112,2]
[323290820,1713877087055,701.06,0.000112,2]
[323290821,1713877088351,500.0,0.000112,2]
[323290822,1713877090445,635.36,8.659e-05,2]
[323290823,1713877090827,635.36,0.00010923,2]
[323290824,1713877092401,500.0,0.000112,2]
[323290825,1713877093059,500.0,0.000112,2]
[323290826,1713877094018,500.0,0.000112,2]
[323290827,1713877097460,1000.0,0.000112,2]
[323290828,1713877098439,689.0,0.000112,2]
[323290829,1713877100138,500.0,0.000112,2]
[323290830,1713877100299,500.0,0.000112,2]
[323290831,1713877100331,549.47,0.000112,2]
[323290832,1713877101646,500.0,0.000112,2]
[323290833,1713877101955,500.0,0.000112,2]
[323290834,1713877107367,500.0,0.000112,2]
[323290835,1713877108614,500.0,0.000112,2]
[323290836,1713877109084,500.0,0.000112,2]
[323290837,1713877109338,500.0,0.000112,2]
[323290838,1713877113215,500.0,0.000112,2]
[323290839,1713877114202,155.0,0.000112,2]
[323290840,1713877118736,500.0,0.000112,2]
[323290841,1713877118780,2455.92,0.000112,2]
[323290842,1713877123202,500.0,0.000112,2]
[323290843,1713877125135,500.0,0.000112,2]
[323290844,1713877127249,500.0,0.000112,2]
[323290845,1713877132448,500.0,0.000112,2]
[323290846,1713877134093,500.0,0.000112,2]
[323290847,1713877135258,546.88,0.000112,2]
[323290851,1713877145591,760.16,0.000112,2]
[323290852,1713877146725,5900.12,0.000112,2]
[323290853,1713877148750,688.45,0.000112,2]
[323290854,1713877149540,500.0,0.000112,2]
[323290855,1713877156026,500.0,0.000112,2]
[323290856,1713877161168,500.0,0.000112,2]
[323290857,1713877162235,500.0,0.000112,2]
[323290858,1713877164068,1878.68,0.000112,2]
[323290859,1713877164170,500.0,0.000112,2]
[323290860,1713877164330,500.0,0.000112,2]
[323290861,1713877167679,500.0,0.000112,2]
[323290862,1713877171334,664.78,0.000112,2]
[323290863,1713877173875,500.0,0.000112,2]
[323290864,1713877178706,523.86545643,0.000112,2]
[323290865,1713877179745,500.0,0.000112,2]
[323290866,1713877187588,500.0,0.000112,2]
[323290867,1713877188566,500.0,0.000112,2]
[323290868,1713877191841,500.0,0.000112,2]
[323290869,1713877192539,500.0,0.000112,2]
[323290870,1713877195855,500.0,0.000112,2]
[323290871,1713877195918,1145.22,0.000112,2]
[323290872,1713877197514,500.0,0.000112,2]
[323290873,1713877203681,500.0,0.000112,2]
[323290874,1713877204678,500.0,0.000112,2]
[323290875,1713877209338,500.0,0.000112,2]
[323290876,1713877209440,500.0,0.000112,2]
[323290877,1713877210366,500.0,0.000112,2]
[323290878,1713877214132,500.0,0.000112,2]
[323290879,1713877214222,1163.67,0.000112,2]
[323290880,1713877215479,292.12,0.000112,2]
[323290881,1713877215667,282.95,0.000112,2]
[323290882,1713877218497,500.0,0.000112,2]
[323290883,1713877221201,500.0,0.000112,2]
[323290884,1713877226366,500.0,0.000112,2]
[323290885,1713877231677,6120.62,0.000112,2]
[323290886,1713877237382,407.57,0.000112,2]
[323290887,1713877239359,500.0,0.000112,2]
[323290888,1713877242479,1423.48,0.000112,2]
[323290889,1713877247577,1079.95,0.000112,2]
[323290890,1713877249832,500.0,0.000112,2]
[323290891,1713877250339,1680.68,0.000112,2]
[323290892,1713877252676,2937.99,0.000112,2]
[323290893,1713877258484,297.4,0.000112,2]
[323290894,1713877261667,500.0,0.000112,2]
[323290895,1713877262623,500.0,0.000112,2]
[323290896,1713877262665,500.0,0.000112,2]
[323290897,1713877263402,500.0,0.000112,2]
[323290898,1713877264478,500.0,0.000112,2]
[323290899,1713877270124,500.0,0.000112,2]
[323290900,1713877270790,500.0,0.000112,2]
[323290901,1713877271934,500.0,0.000112,2]
[323290902,1713877274076,500.0,0.000112,2]
[323290903,1713877274374,802.95,0.000112,2]
[323290904,1713877276300,500.0,0.000112,2]
[323290905,1713877282788,500.0,0.000112,2]
[323290906,1713877284190,500.0,0.000112,2]
[323290907,1713877284790,500.0,0.000112,2]
[323290908,1713877285413,389.24,0.000112,2]
[323290909,1713877286769,1653.15,0.000112,2]
[323290910,1713877286800,210.42,0.000112,2]
[323290911,1713877292585,500.0,0.000112,2]
[323290912,1713877296491,275.57,0.000112,2]
[323290913,1713877299535,461.62,0.000112,2]
[323290914,1713877299853,500.0,0.000112,2]
[323290915,1713877304880,570.08,0.000112,2]
[323290916,1713877309972,502.33383086,0.000112,2]
[323290917,1713877311013,500.0,0.000112,2]
[323290918,1713877312207,500.0,0.000112,2]
[323290919,1713877312495,634.42,0.000112,2]
[323290920,1713877318506,500.0,0.000112,2]
[323290921,1713877318928,500.0,0.000112,2]
[323290922,1713877319231,500.0,0.000112,2]
[323290923,1713877319337,500.0,0.000112,2]
[323290924,1713877322811,500.0,0.000112,2]
[323290925,1713877325553,500.0,0.000112,2]
[323290926,1713877330177,500.0,0.000112,2]
[323290927,1713877330624,1463.93,0.000112,2]
[323290928,1713877331775,500.0,0.000112,2]
[323290929,1713877335749,456.85,0.000112,2]
[323290930,1713877339390,500.0,0.000112,2]
[323290931,1713877348780,500.0,0.000112,2]
[323290932,1713877350376,500.0,0.000112,2]
[323290933,1713877356610,500.0,0.000112,2]
[323290934,1713877356695,500.0,0.000112,2]
[323290935,1713877356966,500.0,0.000112,2]
[323290936,1713877357771,1500.0,0.00011185,2]
[323290937,1713877357905,301.18144149,0.00011196,2]
[323290938,1713877357947,150.0,0.00011145,2]
[323290939,1713877360791,250.0,0.00010543,2]
[323290940,1713877361461,500.0,0.000112,2]
[323290941,1713877363251,500.0,0.000112,2]
[323290942,1713877365555,1121.67,0.000112,2]
[323290943,1713877368010,500.0,0.000112,2]
[323290944,1713877368503,678.49,0.000112,2]
[323290945,1713877369337,500.0,0.000112,2]
[323290946,1713877370130,528.55,0.000112,2]
[323290947,1713877371916,500.0,0.000112,2]
[323290948,1713877375979,500.0,0.000112,2]
[323290949,1713877377482,562.74,0.000112,2]
[323290950,1713877382888,500.0,0.000112,2]
[323290951,1713877385697,1516.22,0.000112,2]
[323290952,1713877385962,1516.22,0.000112,2]
[323290953,1713877386242,1516.22,0.000112,2]
[323290954,1713877390970,150.0,0.00011198,2]
[323290955,1713877391045,150.0,0.00011168,2]
[323290956,1713877391079,150.0,0.00011126,2]
[323290957,1713877391112,150.0,0.00011061,2]
[323290958,1713877391184,150.0,0.00011093,2]
[323290959,1713877391501,150.0,0.00011098,2]
[323290960,1713877396680,500.0,0.000112,2]
[323290961,1713877397657,500.0,0.000112,2]
[323290962,1713877398050,500.0,0.000112,2]
[323290963,1713877400940,405.49,0.000112,2]
[323290964,1713877402543,500.0,0.000112,2]
[323290965,1713877404539,500.0,0.000112,2]
[323290968,1713877411028,1019.67,0.000112,2]
[323290969,1713877413992,500.0,0.000112,2]
[323290970,1713877416568,500.0,0.000112,2]
[323290971,1713877420908,500.0,0.000112,2]
[323290972,1713877421380,500.0,0.000112,2]
[323290973,1713877427680,1504.69,0.000112,2]
[323290974,1713877431775,554.78,0.000112,2]
[323290975,1713877435937,500.0,0.000112,2]
[323290976,1713877435969,500.0,0.000112,2]
[323290977,1713877437154,562.1,0.000112,2]
[323290978,1713877441526,608.33,0.000112,2]
[323290979,1713877445327,500.0,0.000112,2]
[323290980,1713877445429,655.57,0.000112,2]
[323290982,1713877450765,150.0,0.00011093,2]
[323290983,1713877450819,150.0,0.00011137,2]
[323290984,1713877450855,150.0,0.00011075,2]
[323290985,1713877451036,150.0,0.00011095,2]
[323290986,1713877451223,150.0,0.00011178,2]
[323290987,1713877451291,150.0,0.00011142,2]
[323290988,1713877451324,150.0,0.00011092,2]
[323290989,1713877451368,150.0,0.00011096,2]
[323290990,1713877451418,150.0,0.00011129,2]
[323290991,1713877451450,150.0,0.00011171,2]
[323290992,1713877451482,150.0,0.00011139,2]
[323290993,1713877451767,150.0,0.00011063,2]
[323290994,1713877451816,150.0,0.00011157,2]
[323290995,1713877451848,150.0,0.00011184,2]
[323290996,1713877451888,150.0,0.00011126,2]
[323290997,1713877451941,150.0,0.00011194,2]
[323290998,1713877451989,150.0,0.00011188,2]
[323290999,1713877452050,150.0,0.0001112,2]
[323291000,1713877452088,150.0,0.00011095,2]
[323291001,1713877452173,150.0,0.00011186,2]
[323291002,1713877452359,150.0,0.00011157,2]
[323291003,1713877454679,500.0,0.000112,2]
[323291004,1713877459910,500.0,0.000112,2]
[323291005,1713877461989,752.1,0.000112,2]
[323291006,1713877463549,500.0,0.000112,2]
[323291007,1713877469432,500.0,0.000112,2]
[323291008,1713877469783,150.0,0.000112,2]
[323291009,1713877471078,500.0,0.000112,2]
[323291010,1713877477979,483.22,0.000112,2]
[323291011,1713877480981,500.0,0.000112,2]
[323291012,1713877481215,500.0,0.000112,2]
[323291013,1713877482506,157.06353671,0.00011104,2]
[323291014,1713877486684,630.12,0.00010331,2]
[323291015,1713877489969,500.0,0.000112,2]
[323291016,1713877492307,500.0,0.000112,2]
[323291017,1713877495562,500.0,0.000112,2]
[323291018,1713877506762,500.0,0.000112,2]
[323291019,1713877510678,150.0,0.00011073,2]
[323291020,1713877510756,150.0,0.00011126,2]
[323291021,1713877510953,150.0,0.00011127,2]
[323291022,1713877510999,150.0,0.00011143,2]
[323291023,1713877511058,150.0,0.0001107,2]
[323291024,1713877511107,150.0,0.00011133,2]
[323291025,1713877511147,150.0,0.00011168,2]
[323291026,1713877511206,150.0,0.00011093,2]
[323291027,1713877511275,150.0,0.00011124,2]
[323291028,1713877511322,150.0,0.00011186,2]
[323291029,1713877511414,150.0,0.00011087,2]
[323291030,1713877511493,150.0,0.0001105,2]
[323291031,1713877511597,150.0,0.00011114,2]
[323291032,1713877511628,150.0,0.00011199,2]
[323291033,1713877511663,150.0,0.00011199,2]
[323291034,1713877511709,150.0,0.00011165,2]
[323291035,1713877511772,150.0,0.00011105,2]
[323291036,1713877512616,500.0,0.000112,2]
[323291037,1713877517394,500.0,0.000112,2]
[323291038,1713877521700,500.0,0.000112,2]
[323291039,1713877525787,500.0,0.000112,2]
[323291040,1713877532136,500.0,0.000112,2]
[323291041,1713877537159,500.0,0.000112,2]
[323291042,1713877538024,1500.0,0.00011126,2]
[323291043,1713877538075,1500.0,0.00011138,2]
[323291044,1713877538290,823.9535093,0.0001118,2]
[323291045,1713877540009,653.42,0.000112,2]
[323291062,1713877547200,500.0,0.000112,2]
[323291063,1713877550909,177.64944424,0.000112,2]
[323291064,1713877552536,500.0,0.000112,2]
[323291065,1713877556959,500.0,0.000112,2]
[323291066,1713877557292,500.0,0.000112,2]
[323291067,1713877558721,500.0,0.000112,2]
[323291068,1713877559045,2579.27,0.00010313,2]
[323291069,1713877560869,152.71096071,0.00011172,2]
[323291070,1713877561276,500.0,0.000112,2]
[323291071,1713877566778,23900.0,0.0001031,2]
[323291072,1713877567789,327.48624632,0.000112,2]
[323291073,1713877568039,501.7,0.000112,2]
[323291074,1713877570774,150.0,0.00011051,2]
[323291075,1713877571051,150.0,0.00011128,2]
[323291076,1713877571123,150.0,0.00011137,2]
[323291077,1713877575557,571.82,8.391e-05,2]
[323291078,1713877575715,571.82,0.00010655,2]
[323291079,1713877578656,500.0,0.000112,2]
[323291080,1713877587917,500.0,0.000112,2]
[323291081,1713877590429,500.0,0.000112,2]
[323291082,1713877590580,500.0,0.000112,2]
[323291083,1713877597778,1500.0,0.00011179,2]
[323291084,1713877606076,500.0,0.000112,2]
[323291085,1713877617039,500.0,0.000112,2]
[323291086,1713877620503,500.0,0.000112,2]
[323291087,1713877621777,229722.21726829,0.000251,120]
[323291088,1713877621802,70277.78273171,0.000251,120]
[323291089,1713877630558,150.0,0.00011155,2]
[323291090,1713877637107,500.0,0.000112,2]
[323291091,1713877650760,500.0,0.000112,2]
[323291092,1713877656772,441.69,0.000112,2]
[323291093,1713877657871,1508.24,0.000112,2]
[323291094,1713877666906,500.0,0.000112,2]
[323291095,1713877669610,520.28,0.000112,2]
[323291096,1713877684887,500.0,0.000112,2]
[323291097,1713877697806,500.0,0.000112,2]
[323291098,1713877703684,500.0,0.000112,2]
[323291099,1713877713140,500.0,0.000112,2]
[323291100,1713877719255,500.0,0.000112,2]
[323291101,1713877725279,1043.36,0.000112,2]
[323291102,1713877734589,460.46,0.000112,2]
[323291103,1713877736548,500.0,0.000112,2]
[323291104,1713877749139,500.0,0.000112,2]
[323291108,1713877756553,500.0,0.000112,2]
[323291111,1713877777979,300.0,0.00011084,2]
[323291112,1713877778019,150.0,0.00011195,2]
[323291113,1713877778167,300.0,0.00011193,2]
[323291114,1713877781201,414.5696,0.00011103,2]
[323291115,1713877801158,150.0,0.00011155,2]
[323291131,1713877831513,-300.0,0.00011203,2]
[323291134,1713877831522,-150.0,0.00011204,2]
[323291138,1713877831531,-150.0,0.00011204,2]
[323291141,1713877831540,-150.0,0.00011204,2]
[323291144,1713877831552,-1500.0,0.00011206,2]
[323291147,1713877831561,-150.0,0.00011208,2]
[323291148,1713877831570,-150.0,0.00011208,2]
[323291150,1713877831580,-150.0,0.00011209,2]
[323291152,1713877831589,-300.0,0.0001121,2]
[323291153,1713877831599,-150.0,0.0001121,2]
[323291154,1713877831609,-150.0,0.00011211,2]
[323291155,1713877831618,-150.0,0.00011215,2]
[323291156,1713877831629,-150.0,0.00011218,2]
[323291157,1713877831639,-55.23039409,0.00011219,2]
[323291158,1713877831650,-94.76960591,0.00011219,2]
[323291159,1713877831659,-150.0,0.0001122,2]
[323291160,1713877831667,-150.0,0.00011223,2]
[323291161,1713877831676,-150.0,0.00011225,2]
[323291169,1713877831947,-150.0,0.00011228,2]
[323291171,1713877831960,-260.2724314,0.00011228,2]
[323291174,1713877831974,-1239.7275686,0.00011228,2]
[323291175,1713877831983,-150.0,0.00011229,2]
[323291177,1713877831993,-150.0,0.00011232,2]
[323291178,1713877832003,-300.0,0.00011235,2]
[323291179,1713877832012,-150.0,0.00011237,2]
[323291180,1713877832021,-150.0,0.00011238,2]
[323291181,1713877832031,-150.0,0.00011239,2]
[323291182,1713877832040,-150.0,0.00011244,2]
[323291183,1713877832052,-150.0,0.00011245,2]
[323291184,1713877832061,-150.0,0.00011249,2]
[323291185,1713877832071,-150.0,0.00011251,2]
[323291186,1713877832084,-150.0,0.00011255,2]
[323291187,1713877832095,-1500.0,0.00011257,2]
[323291188,1713877832106,-150.0,0.00011258,2]
[323291189,1713877832116,-150.0,0.00011258,2]
[323291190,1713877832125,-150.0,0.00011259,2]
[323291191,1713877832135,-150.0,0.0001126,2]
[323291192,1713877832145,-150.0,0.00011266,2]
[323291193,1713877832154,-150.0,0.00011267,2]
[323291194,1713877832164,-150.0,0.00011268,2]
[323291195,1713877832174,-150.0,0.00011269,2]
[323291196,1713877832185,-150.0,0.00011272,2]
[323291197,1713877832195,-150.0,0.00011275,2]
[323291198,1713877832206,-150.0,0.00011277,2]
[323291199,1713877832217,-300.0,0.00011281,2]
[323291200,1713877832226,-300.0,0.00011282,2]
[323291201,1713877832237,-150.0,0.00011284,2]
[323291202,1713877832248,-150.0,0.00011291,2]
[323291203,1713877832258,-150.0,0.00011291,2]
[323291204,1713877832268,-150.0,0.00011297,2]
[323291205,1713877832279,-150.0,0.00011298,2]
[323291206,1713877832290,-150.0,0.00011299,2]
[323291207,1713877832299,-302.54848145,0.00011305,2]
[323291208,1713877832309,-150.0,0.00011306,2]
[323291209,1713877832319,-200.00824992,0.0001131,2]
[323291210,1713877832330,-150.46400573,0.0001131,2]
[323291211,1713877832340,-150.0,0.00011311,2]
[323291212,1713877832350,-150.0,0.00011313,2]
[323291213,1713877832361,-150.0,0.00011313,2]
[323291214,1713877832371,-150.0,0.00011314,2]
[323291215,1713877832381,-150.0,0.00011314,2]
[323291216,1713877832391,-150.0,0.00011314,2]
[323291217,1713877832402,-150.0,0.00011315,2]
[323291218,1713877832412,-150.0,0.00011319,2]
[323291219,1713877832422,-150.0,0.0001132,2]
[323291220,1713877832432,-150.0,0.00011324,2]
[323291221,1713877832443,-301.45775374,0.00011326,2]
[323291222,1713877832454,-150.0,0.00011337,2]
[323291223,1713877832465,-825.64446,0.0001134,2]
[323291224,1713877832474,-301.68072993,0.00011341,2]
[323291225,1713877832485,-300.0,0.00011353,2]
[323291226,1713877832495,-300.0,0.00011353,2]
[323291227,1713877832505,-10000.0,0.00011374,2]
[323291228,1713877832515,-1000.0,0.00011374,2]
[323291229,1713877832526,-150.0,0.00011378,2]
[323291230,1713877832536,-825.64446,0.0001138,2]
[323291231,1713877832549,-1500.0,0.00011399,2]
[323291232,1713877832561,-825.64446,0.0001141,2]
[323291233,1713877832572,-205.89797358,0.00011414,2]
[323291234,1713877832584,-500.0,0.00011422,2]
[323291235,1713877832595,-500.0,0.00011422,2]
[323291236,1713877832605,-1516.22,0.00011422,2]
[323291237,1713877832615,-825.64446,0.00011423,2]
[323291238,1713877832625,-825.64446,0.00011423,2]
[323291239,1713877832636,-23341.36448491,0.00011424,2]
[323291240,1713877832646,-500.0,0.00011424,2]
[323291241,1713877832655,-500.0,0.00011424,2]
[323291242,1713877832666,-1516.22,0.00011424,2]
[323291243,1713877832675,-1284.27326811,0.00011427,2]
[323291244,1713877832685,-1776.69079267,0.00011428,2]
[323291245,1713877832694,-825.64446,0.0001145,2]
[323291246,1713877832704,-500.0,0.00011471,2]
[323291247,1713877832713,-500.0,0.00011471,2]
[323291248,1713877832723,-500.0,0.00011471,2]
[323291249,1713877832734,-906.49,0.00011471,2]
[323291250,1713877832744,-2574.73,0.00011471,2]
[323291251,1713877832754,-500.0,0.00011471,2]
[323291252,1713877832764,-500.0,0.00011471,2]
[323291253,1713877832774,-500.0,0.00011471,2]
[323291254,1713877832784,-910.95,0.00011471,2]
[323291255,1713877832794,-500.0,0.00011471,2]
[323291256,1713877832803,-500.0,0.00011471,2]
[323291257,1713877832812,-501.50932642,0.00011471,2]
[323291258,1713877832821,-500.0,0.00011471,2]
[323291259,1713877832832,-829.99,0.00011471,2]
[323291260,1713877832842,-585.62,0.00011471,2]
[323291261,1713877832851,-6354.8,0.00011471,2]
[323291262,1713877832861,-500.0,0.00011471,2]
[323291263,1713877832872,-500.0,0.00011471,2]
[323291264,1713877832881,-952.04,0.00011471,2]
[323291265,1713877832891,-500.0,0.00011471,2]
[323291266,1713877832901,-606.22,0.00011471,2]
[323291267,1713877832911,-601.6,0.00011472,2]
[323291268,1713877832921,-500.0,0.00011472,2]
[323291269,1713877832930,-593.19,0.00011472,2]
[323291270,1713877832939,-835.63,0.00011472,2]
[323291271,1713877832949,-500.0,0.00011472,2]
[323291272,1713877832959,-500.0,0.00011472,2]
[323291273,1713877832968,-500.0,0.00011472,2]
[323291274,1713877832978,-500.0,0.00011472,2]
[323291275,1713877832989,-500.0,0.00011472,2]
[323291276,1713877833001,-500.0,0.00011472,2]
[323291277,1713877833011,-727.69,0.00011472,2]
[323291278,1713877833020,-872.25,0.00011472,2]
[323291279,1713877833031,-500.0,0.00011472,2]
[323291280,1713877833041,-722.45,0.00011472,2]
[323291281,1713877833051,-500.0,0.00011472,2]
[323291282,1713877833061,-500.0,0.00011472,2]
[323291283,1713877833071,-500.0,0.00011472,2]
[323291284,1713877833083,-557.3474533,0.00011472,2]
[323291285,1713877833094,-500.0,0.00011472,2]
[323291286,1713877833104,-643.38,0.00011472,2]
[323291287,1713877833115,-500.0,0.00011472,2]
[323291288,1713877833125,-500.0,0.00011472,2]
[323291289,1713877833135,-500.0,0.00011472,2]
[323291290,1713877833146,-500.0,0.00011472,2]
[323291291,1713877833155,-500.0,0.00011472,2]
[323291292,1713877833165,-528.51,0.00011472,2]
[323291293,1713877833174,-500.0,0.00011472,2]
[323291294,1713877833183,-362.98,0.00011472,2]
[323291295,1713877833193,-500.0,0.00011472,2]
[323291296,1713877833202,-236.72,0.00011472,2]
[323291297,1713877833211,-500.0,0.00011472,2]
[323291298,1713877833220,-776.33,0.00011472,2]
[323291299,1713877833229,-217.6,0.00011472,2]
[323291300,1713877833239,-500.0,0.00011472,2]
[323291301,1713877833247,-500.0,0.00011472,2]
[323291302,1713877833257,-500.0,0.00011472,2]
[323291303,1713877833266,-500.0,0.00011472,2]
[323291304,1713877833275,-502.47370948,0.00011472,2]
[323291305,1713877833285,-500.0,0.00011472,2]
[323291306,1713877833294,-575.58,0.00011472,2]
[323291307,1713877833303,-452.0739057,0.00011472,2]
[323291308,1713877833312,-501.7498408,0.00011472,2]
[323291309,1713877833321,-500.0,0.00011472,2]
[323291310,1713877833331,-1062.45,0.00011472,2]
[323291311,1713877833341,-500.0,0.00011472,2]
[323291312,1713877833350,-937.53,0.00011472,2]
[323291313,1713877833359,-500.0,0.00011472,2]
[323291314,1713877833368,-500.0,0.00011472,2]
[323291315,1713877833376,-500.0,0.00011472,2]
[323291316,1713877833385,-500.0,0.00011472,2]
[323291317,1713877833394,-500.0,0.00011472,2]
[323291318,1713877833404,-500.0,0.00011472,2]
[323291319,1713877833413,-500.0,0.00011472,2]
[323291320,1713877833422,-500.0,0.00011472,2]
[323291321,1713877833431,-500.0,0.00011472,2]
[323291322,1713877833440,-500.0,0.00011472,2]
[323291323,1713877833449,-500.0,0.00011472,2]
[323291324,1713877833457,-500.0,0.00011472,2]
[323291325,1713877833467,-150.0,0.00011472,2]
[323291326,1713877833476,-500.0,0.00011472,2]
[323291327,1713877833485,-500.0,0.00011472,2]
[323291328,1713877833494,-500.0,0.00011472,2]
[323291329,1713877833504,-500.0,0.00011472,2]
[323291330,1713877833513,-500.0,0.00011472,2]
[323291331,1713877833522,-500.0,0.00011472,2]
[323291332,1713877833531,-347.9750764,0.00011472,2]
[323291333,1713877833540,-500.0,0.00011472,2]